fUST/lending_fUST_20250615
["ID","MTS","AMOUNT","RATE_DAILY","PERIOD"]
[365947832,1749994246875,-566.63171816,0.00019726,2]
[365947834,1749994246885,-460.0,0.00019726,2]
[365947836,1749994246894,-460.0,0.00019726,2]
[365947838,1749994246903,-460.0,0.00019726,2]
[365947840,1749994246912,-460.0,0.00019726,2]
[365947842,1749994246921,-430.0,0.00019726,2]
[365947844,1749994246931,-460.0,0.00019726,2]
[365947846,1749994246940,-460.0,0.00019726,2]
[365947848,1749994246949,-460.0,0.00019726,2]
[365947860,1749994247043,-460.0,0.00019726,2]
[365947863,1749994247065,-460.0,0.00019726,2]
[365947865,1749994247075,-335.2116035,0.00019726,2]
[365947867,1749994247085,-460.0,0.00019726,2]
[365947868,1749994247094,-460.0,0.00019726,2]
[365947870,1749994247104,-559.47767776,0.00019726,2]
[365947873,1749994247113,-460.0,0.00019726,2]
[365947875,1749994247122,-419.97283349,0.00019726,2]
[365947877,1749994247132,-460.0,0.00019726,2]
[365947878,1749994247141,-460.0,0.00019726,2]
[365947880,1749994247150,-258.96903299,0.00019726,2]
[365947882,1749994247159,-742.48,0.00019726,2]
[365947884,1749994247168,-460.0,0.00019726,2]
[365947885,1749994247178,-460.0,0.00019726,2]
[365947886,1749994247187,-460.0,0.00019726,2]
[365947887,1749994247197,-239.90779681,0.00019726,2]
[365947888,1749994247206,-460.0,0.00019726,2]
[365947889,1749994247215,-460.0,0.00019726,2]
[365947890,1749994247224,-526.61,0.00019726,2]
[365947891,1749994247234,-460.0,0.00019726,2]
[365947892,1749994247243,-460.0,0.00019726,2]
[365947893,1749994247253,-188.79791206,0.00019726,2]
[365947894,1749994247262,-460.0,0.00019726,2]
[365947896,1749994247271,-944.87,0.00019726,2]
[365947898,1749994247280,-420.0,0.00019726,2]
[365947900,1749994247290,-460.0,0.00019726,2]
[365947902,1749994247299,-460.0,0.00019726,2]
[365947904,1749994247310,-1055.99,0.00019726,2]
[365947906,1749994247321,-1248.72,0.00019726,2]
[365947907,1749994247330,-592.82,0.00019726,2]
[365947909,1749994247339,-683.01,0.00019726,2]
[365947911,1749994247348,-460.0,0.00019726,2]
[365947914,1749994247358,-460.0,0.00019726,2]
[365947916,1749994247367,-707.09,0.00019726,2]
[365947917,1749994247376,-460.0,0.00019726,2]
[365947920,1749994247387,-460.0,0.00019726,2]
[365947922,1749994247396,-460.0,0.00019726,2]
[365947924,1749994247405,-460.0,0.00019726,2]
[365947926,1749994247414,-460.0,0.00019726,2]
[365947928,1749994247424,-449.34125282,0.00019726,2]
[365947929,1749994247433,-460.0,0.00019726,2]
[365947932,1749994247442,-460.0,0.00019726,2]
[365947934,1749994247451,-460.0,0.00019726,2]
[365947936,1749994247460,-460.0,0.00019726,2]
[365947937,1749994247469,-460.0,0.00019726,2]
[365947940,1749994247478,-460.0,0.00019726,2]
[365947942,1749994247488,-460.0,0.00019726,2]
[365947944,1749994247497,-460.0,0.00019726,2]
[365947946,1749994247506,-460.0,0.00019726,2]
[365947948,1749994247515,-484.65,0.00019726,2]
[365947950,1749994247524,-460.0,0.00019726,2]
[365947952,1749994247533,-460.0,0.00019726,2]
[365947954,1749994247543,-460.0,0.00019726,2]
[365947956,1749994247552,-460.0,0.00019726,2]
[365947958,1749994247561,-460.0,0.00019726,2]
[365947960,1749994247571,-158.10314851,0.00019726,2]
[365947961,1749994247580,-460.0,0.00019726,2]
[365947963,1749994247589,-664.97,0.00019726,2]
[365947965,1749994247599,-460.0,0.00019726,2]
[365947967,1749994247608,-460.0,0.00019726,2]
[365947970,1749994247618,-573.35,0.00019726,2]
[365947971,1749994247627,-460.0,0.00019726,2]
[365947973,1749994247637,-460.0,0.00019726,2]
[365947975,1749994247646,-460.0,0.00019726,2]
[365947977,1749994247655,-460.0,0.00019726,2]
[365947979,1749994247664,-460.0,0.00019726,2]
[365947981,1749994247673,-176.46763862,0.00019726,2]
[365947983,1749994247683,-448.68557296,0.00019726,2]
[365947986,1749994247692,-460.0,0.00019726,2]
[365947988,1749994247701,-460.0,0.00019726,2]
[365947990,1749994247711,-460.0,0.00019726,2]
[365947992,1749994247720,-460.0,0.00019726,2]
[365947994,1749994247729,-518.24481015,0.00019726,2]
[365947996,1749994247738,-460.0,0.00019726,2]
[365947998,1749994247747,-460.0,0.00019726,2]
[365948000,1749994247757,-1099.93,0.00019726,2]
[365948002,1749994247766,-460.0,0.00019726,2]
[365948004,1749994247775,-670.17,0.00019726,2]
[365948006,1749994247785,-460.0,0.00019726,2]
[365948008,1749994247794,-460.0,0.00019726,2]
[365948010,1749994247804,-1102.67,0.00019726,2]
[365948012,1749994247814,-460.0,0.00019726,2]
[365948014,1749994247823,-460.0,0.00019726,2]
[365948016,1749994247832,-460.0,0.00019726,2]
[365948018,1749994247841,-460.0,0.00019726,2]
[365948020,1749994247850,-460.0,0.00019726,2]
[365948022,1749994247859,-460.0,0.00019726,2]
[365948024,1749994247868,-460.0,0.00019726,2]
[365948026,1749994247877,-194.26,0.00019726,2]
[365948028,1749994247888,-460.0,0.00019726,2]
[365948030,1749994247898,-460.0,0.00019726,2]
[365948032,1749994247907,-1713.9,0.00019726,2]
[365948034,1749994247917,-460.0,0.00019726,2]
[365948036,1749994247927,-262.17090854,0.00019765,2]
[365948038,1749994247936,-490.61058156,0.00019784,2]
[365948040,1749994247945,-460.0,0.0002,2]
[365948042,1749994247955,-460.0,0.0002,2]
[365948044,1749994247964,-382.26035825,0.0002,2]
[365948046,1749994247973,-460.0,0.0002,2]
[365948048,1749994247982,-460.0,0.0002,2]
[365948050,1749994247991,-317.5264278,0.0002,2]
[365948052,1749994248000,-460.0,0.0002,2]
[365948054,1749994248010,-460.0,0.0002,2]
[365948056,1749994248019,-460.0,0.0002,2]
[365948058,1749994248028,-430.0,0.0002,2]
[365948060,1749994248038,-422.34541584,0.0002,2]
[365948062,1749994248048,-350.0,0.0002,2]
[365948064,1749994248057,-460.0,0.0002,2]
[365948066,1749994248067,-234.88729475,0.0002,2]
[365948068,1749994248076,-530.14274817,0.0002,2]
[365948070,1749994248086,-1756.0,0.0002,2]
[365948072,1749994248096,-450.29749311,0.0002,2]
[365948074,1749994248106,-460.0,0.0002,2]
[365948076,1749994248115,-460.0,0.0002,2]
[365948078,1749994248125,-460.0,0.0002,2]
[365948080,1749994248135,-460.0,0.0002,2]
[365948082,1749994248144,-370.0,0.0002,2]
[365948084,1749994248154,-460.0,0.0002,2]
[365948086,1749994248163,-460.0,0.0002,2]
[365948088,1749994248172,-460.0,0.0002,2]
[365948090,1749994248181,-460.0,0.0002,2]
[365948092,1749994248191,-460.0,0.0002,2]
[365948094,1749994248200,-460.0,0.0002,2]
[365948096,1749994248210,-467.65048428,0.0002,2]
[365948098,1749994248219,-460.0,0.0002,2]
[365948100,1749994248229,-460.0,0.0002,2]
[365948102,1749994248239,-460.0,0.0002,2]
[365948104,1749994248249,-460.0,0.0002,2]
[365948106,1749994248258,-460.0,0.0002,2]
[365948108,1749994248267,-460.0,0.0002,2]
[365948110,1749994248277,-460.0,0.0002,2]
[365948112,1749994248286,-460.0,0.0002,2]
[365948115,1749994248296,-523.96631273,0.0002,2]
[365948117,1749994248307,-460.0,0.0002,2]
[365948118,1749994248320,-460.0,0.0002,2]
[365948120,1749994248330,-420.09550609,0.0002,2]
[365948122,1749994248340,-460.0,0.0002,2]
[365948125,1749994248351,-460.0,0.0002,2]
[365948127,1749994248360,-742.48,0.0002,2]
[365948129,1749994248369,-460.0,0.0002,2]
[365948130,1749994248379,-460.0,0.0002,2]
[365948132,1749994248392,-460.0,0.0002,2]
[365948134,1749994248403,-194.80554113,0.0002,2]
[365948136,1749994248412,-526.61,0.0002,2]
[365948138,1749994248422,-460.0,0.0002,2]
[365948140,1749994248431,-460.0,0.0002,2]
[365948142,1749994248441,-944.87,0.0002,2]
[365948144,1749994248451,-522.88215067,0.0002,2]
[365948146,1749994248461,-460.0,0.0002,2]
[365948148,1749994248471,-1055.99,0.0002,2]
[365948151,1749994248482,-1248.72,0.0002,2]
[365948153,1749994248493,-592.82,0.0002,2]
[365948155,1749994248502,-683.01,0.0002,2]
[365948157,1749994248512,-460.0,0.0002,2]
[365948158,1749994248521,-460.0,0.0002,2]
[365948160,1749994248531,-707.09,0.0002,2]
[365948163,1749994248541,-460.0,0.0002,2]
[365948164,1749994248551,-460.0,0.0002,2]
[365948167,1749994248561,-460.0,0.0002,2]
[365948169,1749994248574,-460.0,0.0002,2]
[365948171,1749994248583,-460.0,0.0002,2]
[365948173,1749994248594,-460.0,0.0002,2]
[365948174,1749994248603,-460.0,0.0002,2]
[365948176,1749994248613,-460.0,0.0002,2]
[365948179,1749994248623,-460.32,0.0002,2]
[365948180,1749994248632,-206.76392272,0.0002,2]
[365948183,1749994248642,-6567.94208121,0.0002,2]
[365948185,1749994248651,-460.0,0.0002,2]
[365948186,1749994248660,-1184.51490228,0.0002,2]
[365948189,1749994248670,-360.69521841,0.0002,2]
[365948191,1749994248680,-554.42837408,0.0002,2]
[365948193,1749994248689,-460.0,0.0002,2]
[365948195,1749994248699,-412.75043494,0.0002,2]
[365948197,1749994248708,-460.0,0.0002,2]
[365948199,1749994248718,-460.0,0.0002,2]
[365948201,1749994248727,-460.0,0.0002,2]
[365948203,1749994248736,-460.0,0.0002,2]
[365948205,1749994248746,-460.0,0.0002,2]
[365948207,1749994248756,-664.97,0.0002,2]
[365948209,1749994248765,-460.0,0.0002,2]
[365948211,1749994248775,-573.35,0.0002,2]
[365948213,1749994248785,-460.0,0.0002,2]
[365948215,1749994248794,-460.0,0.0002,2]
[365948217,1749994248804,-460.0,0.0002,2]
[365948219,1749994248815,-330.45499987,0.0002,2]
[365948221,1749994248826,-208.9247005,0.0002,2]
[365948222,1749994248835,-460.0,0.0002,2]
[365948225,1749994248846,-460.0,0.0002,2]
[365948226,1749994248856,-460.0,0.0002,2]
[365948228,1749994248866,-460.0,0.0002,2]
[365948231,1749994248876,-460.0,0.0002,2]
[365948233,1749994248886,-394.17581899,0.0002,2]
[365948235,1749994248895,-1099.93,0.0002,2]
[365948237,1749994248905,-400.0,0.0002,2]
[365948239,1749994248915,-670.17,0.0002,2]
[365948240,1749994248925,-417.01317105,0.0002,2]
[365948242,1749994248935,-1102.67,0.0002,2]
[365948244,1749994248945,-212.77796731,0.0002,2]
[365948247,1749994248955,-460.0,0.0002,2]
[365948249,1749994248965,-460.0,0.0002,2]
[365948251,1749994248975,-460.0,0.0002,2]
[365948253,1749994248985,-460.0,0.0002,2]
[365948255,1749994248994,-169.43572767,0.0002,2]
[365948257,1749994249004,-430.0,0.0002,30]
[365948259,1749994249013,-1713.9,0.0002,2]
[365948261,1749994249023,-582.52,0.0002,2]
[365948263,1749994249032,-362.62126205,0.00020021,2]
[365948265,1749994249041,-800.0,0.00020068,2]
[365948267,1749994249052,-489.153115,0.00020187,2]
[365948269,1749994249062,-1533.25325192,0.00020268,2]
[365948271,1749994249074,-500.0,0.00020268,2]
[365948273,1749994249083,-460.0,0.00020273,2]
[365948275,1749994249093,-460.0,0.00020273,2]
[365948277,1749994249103,-430.0,0.00020273,2]
[365948279,1749994249113,-460.0,0.00020273,2]
[365948281,1749994249123,-460.0,0.00020273,2]
[365948283,1749994249133,-460.0,0.00020273,2]
[365948285,1749994249144,-460.0,0.00020273,2]
[365948287,1749994249154,-460.0,0.00020273,2]
[365948289,1749994249164,-460.0,0.00020273,2]
[365948291,1749994249175,-460.0,0.00020273,2]
[365948293,1749994249185,-460.0,0.00020273,2]
[365948295,1749994249196,-460.0,0.00020273,2]
[365948297,1749994249206,-460.0,0.00020273,2]
[365948299,1749994249216,-460.0,0.00020273,2]
[365948301,1749994249226,-609.82,0.00020273,2]
[365948303,1749994249235,-460.0,0.00020273,2]
[365948305,1749994249245,-460.0,0.00020273,2]
[365948307,1749994249255,-460.0,0.00020273,2]
[365948309,1749994249265,-460.0,0.00020273,2]
[365948311,1749994249276,-460.0,0.00020273,2]
[365948313,1749994249286,-460.0,0.00020273,2]
[365948315,1749994249297,-460.0,0.00020273,2]
[365948317,1749994249309,-460.0,0.00020273,2]
[365948320,1749994249319,-460.0,0.00020273,2]
[365948321,1749994249328,-460.0,0.00020273,2]
[365948333,1749994249431,-742.48,0.00020273,2]
[365948335,1749994249442,-374.1,0.00020273,2]
[365948337,1749994249452,-410.0,0.00020273,2]
[365948339,1749994249461,-526.61,0.00020273,2]
[365948342,1749994249471,-460.0,0.00020273,2]
[365948344,1749994249480,-460.0,0.00020273,2]
[365948346,1749994249491,-944.87,0.00020273,2]
[365948348,1749994249501,-460.0,0.00020273,2]
[365948350,1749994249510,-1055.99,0.00020273,2]
[365948352,1749994249520,-1248.72,0.00020273,2]
[365948354,1749994249530,-592.82,0.00020273,2]
[365948356,1749994249539,-683.01,0.00020273,2]
[365948358,1749994249549,-460.0,0.00020273,2]
[365948360,1749994249561,-707.09,0.00020273,2]
[365948362,1749994249571,-460.0,0.00020273,2]
[365948364,1749994249581,-566.14952116,0.00020273,2]
[365948366,1749994249591,-460.0,0.00020273,2]
[365948368,1749994249600,-460.0,0.00020273,2]
[365948370,1749994249609,-460.0,0.00020273,2]
[365948372,1749994249618,-460.0,0.00020273,2]
[365948374,1749994249628,-460.0,0.00020273,2]
[365948376,1749994249637,-460.0,0.00020273,2]
[365948378,1749994249646,-482.49,0.00020273,2]
[365948380,1749994249655,-460.0,0.00020273,2]
[365948382,1749994249664,-460.0,0.00020273,2]
[365948384,1749994249673,-460.0,0.00020273,2]
[365948386,1749994249682,-664.97,0.00020273,2]
[365948388,1749994249693,-573.35,0.00020273,2]
[365948390,1749994249702,-460.0,0.00020273,2]
[365948392,1749994249712,-460.0,0.00020273,2]
[365948394,1749994249722,-460.0,0.00020273,2]
[365948396,1749994249731,-460.0,0.00020273,2]
[365948398,1749994249741,-364.70178477,0.00020273,2]
[365948400,1749994249750,-460.0,0.00020273,2]
[365948402,1749994249760,-460.0,0.00020273,2]
[365948404,1749994249770,-1099.93,0.00020273,2]
[365948406,1749994249780,-670.17,0.00020273,2]
[365948408,1749994249789,-1102.67,0.00020273,2]
[365948410,1749994249799,-460.0,0.00020273,2]
[365948412,1749994249809,-460.0,0.00020273,2]
[365948414,1749994249819,-460.0,0.00020273,2]
[365948417,1749994249828,-531.51704269,0.00020273,2]
[365948418,1749994249837,-1713.9,0.00020273,2]
[365948421,1749994249846,-500.0,0.000204,2]
[365948422,1749994249856,-490.61058156,0.00020489,2]
[365948425,1749994249866,-250.46544528,0.00020491,2]
[365948426,1749994249875,-314.252,0.00020516,2]
[365948428,1749994249885,-818.38,0.00020538,3]
[365948431,1749994249895,-409.18,0.00020538,3]
[365948432,1749994249904,-460.0,0.00020547,2]
[365948435,1749994249914,-303.60810669,0.00020547,2]
[365948437,1749994249924,-440.0,0.00020547,2]
[365948439,1749994249933,-485.90855456,0.00020547,2]
[365948441,1749994249943,-460.0,0.00020547,2]
[365948443,1749994249952,-460.0,0.00020547,2]
[365948445,1749994249963,-460.0,0.00020547,2]
[365948447,1749994249972,-271.23291471,0.00020547,2]
[365948449,1749994249981,-460.0,0.00020547,2]
[365948451,1749994249991,-460.0,0.00020547,2]
[365948453,1749994250000,-460.0,0.00020547,2]
[365948455,1749994250009,-500.0,0.00020547,2]
[365948457,1749994250019,-441.90002606,0.00020547,2]
[365948459,1749994250028,-460.0,0.00020547,2]
[365948461,1749994250038,-460.0,0.00020547,2]
[365948463,1749994250047,-460.0,0.00020547,2]
[365948465,1749994250057,-460.0,0.00020547,2]
[365948467,1749994250068,-440.0,0.00020547,2]
[365948469,1749994250077,-460.0,0.00020547,2]
[365948471,1749994250086,-366.31376913,0.00020547,2]
[365948473,1749994250096,-460.0,0.00020547,2]
[365948475,1749994250106,-742.48,0.00020547,2]
[365948477,1749994250116,-160.0,0.00020547,2]
[365948479,1749994250126,-526.61,0.00020547,2]
[365948481,1749994250136,-440.0,0.00020547,2]
[365948483,1749994250145,-460.0,0.00020547,2]
[365948485,1749994250155,-944.87,0.00020547,2]
[365948487,1749994250165,-460.0,0.00020547,2]
[365948489,1749994250175,-1055.99,0.00020547,2]
[365948491,1749994250184,-1248.72,0.00020547,2]
[365948493,1749994250194,-592.82,0.00020547,2]
[365948495,1749994250203,-683.01,0.00020547,2]
[365948497,1749994250213,-707.09,0.00020547,2]
[365948499,1749994250222,-460.0,0.00020547,2]
[365948501,1749994250231,-460.0,0.00020547,2]
[365948503,1749994250240,-460.0,0.00020547,2]
[365948505,1749994250249,-460.0,0.00020547,2]
[365948507,1749994250259,-460.0,0.00020547,2]
[365948509,1749994250268,-460.0,0.00020547,2]
[365948511,1749994250277,-460.0,0.00020547,2]
[365948513,1749994250286,-460.0,0.00020547,2]
[365948515,1749994250296,-664.97,0.00020547,2]
[365948517,1749994250305,-573.35,0.00020547,2]
[365948519,1749994250319,-460.0,0.00020547,2]
[365948521,1749994250328,-460.0,0.00020547,2]
[365948523,1749994250338,-460.0,0.00020547,2]
[365948525,1749994250347,-460.0,0.00020547,2]
[365948527,1749994250357,-1099.93,0.00020547,2]
[365948529,1749994250366,-670.17,0.00020547,2]
[365948531,1749994250375,-1102.67,0.00020547,2]
[365948533,1749994250385,-460.0,0.00020547,2]
[365948535,1749994250395,-460.0,0.00020547,2]
[365948537,1749994250404,-174.8,0.00020547,2]
[365948539,1749994250414,-1713.9,0.00020547,2]
[365948541,1749994250423,-851.98553634,0.00020549,2]
[365948543,1749994250432,-1456.18,0.000206,2]
[365948545,1749994250443,-50917.88,0.000206,2]
[365948547,1749994250452,-678.47,0.000206,2]
[365948549,1749994250461,-1562.65,0.00020683,2]
[365948551,1749994250470,-1231.87757602,0.000207,3]
[365948553,1749994250479,-1231.87757586,0.000207,3]
[365948555,1749994250488,-1231.87757586,0.000207,3]
[365948556,1749994250497,-1231.87757586,0.000207,3]
[365948558,1749994250507,-1231.87757586,0.00020728,3]
[365948560,1749994250517,-12535.62630729,0.00020771,2]
[365948563,1749994250527,-160.0,0.00020771,2]
[365948565,1749994250537,-160.0,0.00020772,2]
[365948567,1749994250547,-229.86375354,0.00020772,2]
[365948569,1749994250556,-213.32089821,0.00020772,2]
[365948571,1749994250566,-835.55256958,0.00020772,2]
[365948573,1749994250577,-424.47602138,0.00020772,2]
[365948575,1749994250586,-160.0,0.00020772,2]
[365948577,1749994250596,-845.25843836,0.00020772,2]
[365948579,1749994250605,-160.0,0.00020772,2]
[365948581,1749994250616,-460.0,0.00020821,2]
[365948583,1749994250626,-311.6,0.00020821,2]
[365948585,1749994250636,-460.0,0.00020821,2]
[365948587,1749994250645,-460.0,0.00020821,2]
[365948589,1749994250654,-467.82904102,0.00020821,2]
[365948591,1749994250663,-460.0,0.00020821,2]
[365948593,1749994250673,-296.97087463,0.00020821,2]
[365948595,1749994250682,-460.0,0.00020821,2]
[365948597,1749994250691,-178.07,0.00020821,2]
[365948599,1749994250701,-460.0,0.00020821,2]
[365948601,1749994250710,-460.0,0.00020821,2]
[365948603,1749994250719,-440.0,0.00020821,2]
[365948605,1749994250729,-742.48,0.00020821,2]
[365948607,1749994250738,-526.61,0.00020821,2]
[365948609,1749994250748,-944.87,0.00020821,2]
[365948611,1749994250757,-448.9,0.00020821,2]
[365948613,1749994250767,-1055.99,0.00020821,2]
[365948615,1749994250776,-1248.72,0.00020821,2]
[365948617,1749994250786,-592.82,0.00020821,2]
[365948619,1749994250795,-683.01,0.00020821,2]
[365948621,1749994250805,-707.09,0.00020821,2]
[365948623,1749994250814,-460.0,0.00020821,2]
[365948625,1749994250825,-405.17793295,0.00020821,2]
[365948627,1749994250834,-460.0,0.00020821,2]
[365948629,1749994250843,-460.0,0.00020821,2]
[365948631,1749994250853,-460.0,0.00020821,2]
[365948633,1749994250862,-460.0,0.00020821,2]
[365948636,1749994250872,-460.0,0.00020821,2]
[365948637,1749994250881,-460.0,0.00020821,2]
[365948639,1749994250891,-664.97,0.00020821,2]
[365948642,1749994250901,-573.35,0.00020821,2]
[365948643,1749994250910,-460.0,0.00020821,2]
[365948645,1749994250919,-460.0,0.00020821,2]
[365948647,1749994250928,-460.0,0.00020821,2]
[365948649,1749994250937,-440.0,0.00020821,2]
[365948651,1749994250946,-1099.93,0.00020821,2]
[365948653,1749994250956,-670.17,0.00020821,2]
[365948655,1749994250965,-1102.67,0.00020821,2]
[365948657,1749994250974,-460.0,0.00020821,2]
[365948659,1749994250984,-204.56838348,0.00020821,2]
[365948661,1749994250993,-1713.9,0.00020821,2]
[365948663,1749994251002,-258.76992136,0.00020891,2]
[365948665,1749994251012,-420.0,0.00020893,2]
[365948667,1749994251021,-1231.87757586,0.00020934,4]
[365948669,1749994251030,-1000.0,0.00020948,2]
[365948671,1749994251040,-1680.0,0.00020995,2]
[365948673,1749994251049,-560.7576648,0.00021095,2]
[365948675,1749994251059,-283.09,0.00021095,2]
[365948677,1749994251069,-460.0,0.00021095,2]
[365948679,1749994251079,-350.0,0.00021095,2]
[365948681,1749994251089,-460.0,0.00021095,2]
[365948683,1749994251098,-578.06,0.00021095,2]
[365948685,1749994251108,-742.48,0.00021095,2]
[365948687,1749994251118,-526.61,0.00021095,2]
[365948689,1749994251127,-944.87,0.00021095,2]
[365948691,1749994251137,-1055.99,0.00021095,2]
[365948693,1749994251146,-1248.72,0.00021095,2]
[365948695,1749994251156,-592.82,0.00021095,2]
[365948697,1749994251166,-683.01,0.00021095,2]
[365948699,1749994251175,-707.09,0.00021095,2]
[365948701,1749994251184,-460.0,0.00021095,2]
[365948703,1749994251194,-460.0,0.00021095,2]
[365948705,1749994251203,-460.0,0.00021095,2]
[365948707,1749994251213,-267.7,0.00021095,2]
[365948709,1749994251222,-460.0,0.00021095,2]
[365948711,1749994251231,-460.0,0.00021095,2]
[365948713,1749994251241,-331.83258855,0.00021095,2]
[365948715,1749994251251,-664.97,0.00021095,2]
[365948717,1749994251260,-573.35,0.00021095,2]
[365948719,1749994251269,-515.56,0.00021095,2]
[365948721,1749994251279,-460.0,0.00021095,2]
[365948723,1749994251289,-460.0,0.00021095,2]
[365948725,1749994251298,-1099.93,0.00021095,2]
[365948727,1749994251310,-670.17,0.00021095,2]
[365948729,1749994251321,-1102.67,0.00021095,2]
[365948731,1749994251331,-460.0,0.00021095,2]
[365948733,1749994251341,-1713.9,0.00021095,2]
[365948734,1749994251351,-1231.87757586,0.00021141,4]
[365948735,1749994251363,-800.0,0.00021164,2]
[365948736,1749994251373,-490.61058156,0.00021195,2]
[365948737,1749994251384,-500.0,0.00021267,2]
[365948738,1749994251394,-500.9714309,0.00021267,2]
[365948739,1749994251404,-501.28660885,0.00021267,2]
[365948740,1749994251413,-519.88757534,0.00021267,2]
[365948741,1749994251423,-500.0,0.00021267,2]
[365948742,1749994251433,-500.0,0.00021267,2]
[365948743,1749994251442,-503.41899336,0.00021267,2]
[365948744,1749994251451,-503.51809284,0.00021267,2]
[365948745,1749994251460,-500.0,0.00021267,2]
[365948746,1749994251469,-167.00570831,0.00021267,2]
[365948748,1749994251479,-500.0,0.00021267,2]
[365948750,1749994251488,-516.23011611,0.00021267,2]
[365948752,1749994251497,-502.10277789,0.00021267,2]
[365948754,1749994251507,-500.0,0.00021267,2]
[365948765,1749994251604,-500.0,0.00021267,2]
[365948767,1749994251615,-503.19713262,0.00021267,2]
[365948769,1749994251624,-440.72353379,0.00021267,2]
[365948771,1749994251633,-548.790575,0.00021267,2]
[365948773,1749994251642,-500.0,0.00021267,2]
[365948775,1749994251652,-500.0,0.00021267,2]
[365948777,1749994251661,-500.0,0.00021267,2]
[365948779,1749994251671,-500.0,0.00021267,2]
[365948781,1749994251680,-500.0,0.00021267,2]
[365948783,1749994251689,-225.8836721,0.00021267,2]
[365948785,1749994251699,-500.64919214,0.00021267,2]
[365948787,1749994251708,-600.0,0.00021267,2]
[365948789,1749994251717,-500.0,0.00021267,2]
[365948791,1749994251726,-500.0,0.00021267,2]
[365948793,1749994251736,-503.40254458,0.00021267,2]
[365948795,1749994251745,-500.0,0.000213,2]
[365948797,1749994251754,-500.0,0.000213,2]
[365948799,1749994251764,-502.0387766,0.000213,2]
[365948801,1749994251773,-615.07703605,0.000213,2]
[365948803,1749994251783,-502.78795527,0.000213,2]
[365948805,1749994251792,-502.2537229,0.000213,2]
[365948806,1749994251801,-336.69550584,0.000213,2]
[365948808,1749994251809,-500.0,0.000213,2]
[365948810,1749994251818,-171.8358578,0.000213,2]
[365948812,1749994251827,-500.0,0.000213,2]
[365948814,1749994251836,-624.45439578,0.000213,2]
[365948816,1749994251845,-258.8294469,0.000213,2]
[365948818,1749994251854,-500.0,0.000213,2]
[365948820,1749994251863,-1231.87757586,0.00021348,5]
[365948822,1749994251873,-460.0,0.00021369,2]
[365948824,1749994251882,-460.0,0.00021369,2]
[365948826,1749994251891,-742.48,0.00021369,2]
[365948828,1749994251900,-526.61,0.00021369,2]
[365948830,1749994251909,-944.87,0.00021369,2]
[365948832,1749994251919,-1055.99,0.00021369,2]
[365948834,1749994251928,-1248.72,0.00021369,2]
[365948836,1749994251937,-592.82,0.00021369,2]
[365948838,1749994251946,-683.01,0.00021369,2]